[Event "*** Qualifier 4: Titled Tuesday 3|2 Blitz"]
[Site "Chess.com"]
[Date "2017.04.25"]
[Round "3"]
[White "arna"]
[Black "dhanushbharadwaj"]
[Result "0-1"]
[WhiteElo "2080"]
[BlackElo "2454"]
[TimeControl "180+2"]
[EndTime "13:33:28 PDT"]
[Termination "dhanushbharadwaj won by resignation"]

1. e4 {[%clk 0:03:02]} 1... c5 {[%clk 0:02:59.6]} 2. Nf3 {[%clk 0:03:02.3]} 2...
d6 {[%clk 0:02:59.2]} 3. d4 {[%clk 0:02:59]} 3... cxd4 {[%clk 0:03:01.1]} 4.
Nxd4 {[%clk 0:03:00.9]} 4... Nf6 {[%clk 0:02:59.2]} 5. f3 {[%clk 0:03:02.4]}
5... a6 {[%clk 0:02:59.5]} 6. c4 {[%clk 0:03:03]} 6... g6 {[%clk 0:02:58.5]} 7.
Nc3 {[%clk 0:03:04.3]} 7... Bg7 {[%clk 0:02:58.6]} 8. Be3 {[%clk 0:03:05.9]}
8... O-O {[%clk 0:02:59.7]} 9. Qd2 {[%clk 0:03:07.5]} 9... Bd7 {[%clk
0:02:56.6]} 10. Be2 {[%clk 0:03:08.7]} 10... Nc6 {[%clk 0:02:56.8]} 11. O-O
{[%clk 0:03:08.9]} 11... Rc8 {[%clk 0:02:56.5]} 12. Rac1 {[%clk 0:03:03.1]}
12... Nxd4 {[%clk 0:02:48.5]} 13. Bxd4 {[%clk 0:03:03.5]} 13... Qa5 {[%clk
0:02:47.5]} 14. Rfd1 {[%clk 0:02:59.1]} 14... Kh8 {[%clk 0:02:41]} 15. a4 {[%clk
0:02:45.6]} 15... h5 {[%clk 0:02:07]} 16. b3 {[%clk 0:02:24.9]} 16... Rc7 {[%clk
0:01:48.3]} 17. Nd5 {[%clk 0:01:51.7]} 17... Qxd2 {[%clk 0:01:47.4]} 18. Rxd2
{[%clk 0:01:53.6]} 18... Nxd5 {[%clk 0:01:48.3]} 19. exd5 {[%clk 0:01:53.9]}
19... Bxd4+ {[%clk 0:01:46.8]} 20. Rxd4 {[%clk 0:01:54]} 20... b5 {[%clk
0:01:44.9]} 21. axb5 {[%clk 0:01:51.1]} 21... axb5 {[%clk 0:01:46.8]} 22. Ra1
{[%clk 0:01:50.4]} 22... bxc4 {[%clk 0:01:42.4]} 23. Bxc4 {[%clk 0:01:42]} 23...
Rb8 {[%clk 0:01:39.7]} 24. Re4 {[%clk 0:01:31.8]} 24... Bb5 {[%clk 0:01:39.2]}
25. Rae1 {[%clk 0:01:24.8]} 25... Bxc4 {[%clk 0:01:39.6]} 26. bxc4 {[%clk
0:01:08.7]} 26... Rbb7 {[%clk 0:01:39.2]} 27. h4 {[%clk 0:01:01.9]} 27... Kg7
{[%clk 0:01:38.6]} 28. g4 {[%clk 0:00:56.6]} 28... Kf8 {[%clk 0:01:37.9]} 29.
gxh5 {[%clk 0:00:47.1]} 29... gxh5 {[%clk 0:01:39.8]} 30. Rf4 {[%clk 0:00:48.6]}
30... Rb4 {[%clk 0:01:25.7]} 31. Rc1 {[%clk 0:00:22.4]} 31... f6 {[%clk
0:01:25.9]} 32. Rf5 {[%clk 0:00:19.8]} 32... Rcxc4 {[%clk 0:01:21]} 33. Rxc4
{[%clk 0:00:19.6]} 33... Rxc4 {[%clk 0:01:22.9]} 34. Rxh5 {[%clk 0:00:21.2]}
34... Kf7 {[%clk 0:01:24.2]} 35. Rh7+ {[%clk 0:00:21.5]} 35... Kf8 {[%clk
0:01:24.2]} 36. Kg2 {[%clk 0:00:20.9]} 36... Rd4 {[%clk 0:01:23.9]} 37. Rh5
{[%clk 0:00:13.2]} 37... Kg7 {[%clk 0:01:24.1]} 38. Kg3 {[%clk 0:00:14]} 38...
Kg6 {[%clk 0:01:24.6]} 39. Rh8 {[%clk 0:00:15.1]} 39... Rxd5 {[%clk 0:01:25.1]}
40. Re8 {[%clk 0:00:08.1]} 40... Kf7 {[%clk 0:01:25.6]} 41. Rd8 {[%clk
0:00:07.4]} 41... e5 {[%clk 0:01:26.6]} 42. Kg4 {[%clk 0:00:07.6]} 42... Rd4+
{[%clk 0:01:27.3]} 43. Kg3 {[%clk 0:00:08.1]} 43... d5 {[%clk 0:01:27.3]} 44. h5
{[%clk 0:00:07.2]} 44... Rd1 {[%clk 0:01:28]} 45. Rd6 {[%clk 0:00:05.8]} 45...
d4 {[%clk 0:01:28.2]} 46. h6 {[%clk 0:00:06]} 46... Rh1 {[%clk 0:01:28.5]} 47.
Rd7+ {[%clk 0:00:04.5]} 47... Kg6 {[%clk 0:01:27.8]} 48. Rg7+ {[%clk 0:00:03.9]}
48... Kxh6 {[%clk 0:01:28.7]} 49. Rg8 {[%clk 0:00:05.8]} 49... Rg1+ {[%clk
0:01:29.1]} 0-1

[Event "*** Qualifier 4: Titled Tuesday 3|2 Blitz"]
[Site "Chess.com"]
[Date "2017.04.25"]
[Round "3"]
[White "aa175"]
[Black "tihanaivekovic223"]
[Result "0-1"]
[WhiteElo "1814"]
[BlackElo "2001"]
[TimeControl "180+2"]
[EndTime "13:33:28 PDT"]
[Termination "tihanaivekovic223 won by checkmate"]

1. e4 {[%clk 0:03:02]} 1... c6 {[%clk 0:02:59.7]} 2. Nf3 {[%clk 0:03:01.5]} 2...
d5 {[%clk 0:03:01.6]} 3. exd5 {[%clk 0:03:02.6]} 3... cxd5 {[%clk 0:03:03.5]} 4.
d4 {[%clk 0:03:04.5]} 4... Nc6 {[%clk 0:03:04.6]} 5. c4 {[%clk 0:03:06.1]} 5...
Nf6 {[%clk 0:02:55.8]} 6. Nc3 {[%clk 0:03:06]} 6... Bg4 {[%clk 0:02:56.6]} 7.
Qb3 {[%clk 0:03:04.6]} 7... Bxf3 {[%clk 0:02:50.8]} 8. gxf3 {[%clk 0:03:04.5]}
8... e6 {[%clk 0:02:51.9]} 9. Qxb7 {[%clk 0:03:04.1]} 9... Nxd4 {[%clk
0:02:52.9]} 10. cxd5 {[%clk 0:03:01.5]} 10... Nxd5 {[%clk 0:02:47.8]} 11. Nxd5
{[%clk 0:02:38.7]} 11... Qxd5 {[%clk 0:02:27.9]} 12. Qxd5 {[%clk 0:02:29.1]}
12... exd5 {[%clk 0:02:29.8]} 13. f4 {[%clk 0:02:17.9]} 13... Nc2+ {[%clk
0:02:28.2]} 14. Kd1 {[%clk 0:02:17.6]} 14... Nxa1 {[%clk 0:02:30.1]} 15. b3
{[%clk 0:02:18.6]} 15... Be7 {[%clk 0:02:14.5]} 16. Bb2 {[%clk 0:02:14]} 16...
Bf6 {[%clk 0:02:14.5]} 17. Bb5+ {[%clk 0:02:11.5]} 17... Kd8 {[%clk 0:02:01.5]}
18. Bxf6+ {[%clk 0:02:12]} 18... gxf6 {[%clk 0:02:01]} 19. Kd2 {[%clk
0:02:13.4]} 19... Nxb3+ {[%clk 0:01:59.3]} 20. axb3 {[%clk 0:02:14]} 20... Rb8
{[%clk 0:01:58]} 21. Bc6 {[%clk 0:02:14.1]} 21... Rxb3 {[%clk 0:01:54.2]} 22.
Bxd5 {[%clk 0:02:15.1]} 22... Rb2+ {[%clk 0:01:54.9]} 23. Ke3 {[%clk 0:02:16.1]}
23... Re8+ {[%clk 0:01:54.5]} 24. Kf3 {[%clk 0:02:16.5]} 24... Ree2 {[%clk
0:01:50]} 25. Bxf7 {[%clk 0:02:02.1]} 25... Rxf2+ {[%clk 0:01:48.9]} 26. Kg4
{[%clk 0:02:00.2]} 26... Rb4 {[%clk 0:01:46.7]} 27. Rd1+ {[%clk 0:01:57.9]}
27... Ke7 {[%clk 0:01:45.1]} 28. Bg8 {[%clk 0:01:57.4]} 28... Rfxf4+ {[%clk
0:01:41.9]} 29. Kg3 {[%clk 0:01:57.8]} 29... Rg4+ {[%clk 0:01:40.8]} 30. Kh3
{[%clk 0:01:57.7]} 30... Rxg8 {[%clk 0:01:42.7]} 31. Rd7+ {[%clk 0:01:57.4]}
31... Ke6 {[%clk 0:01:29.3]} 32. Rd6+ {[%clk 0:01:41.1]} 32... Ke5 {[%clk
0:01:28.6]} 33. Re6+ {[%clk 0:01:39]} 33... Kd4 {[%clk 0:01:19.1]} 34. Rd6+
{[%clk 0:01:32.2]} 34... Ke4 {[%clk 0:00:56.7]} 35. Re6+ {[%clk 0:01:31.2]}
35... Kf5 {[%clk 0:00:44.5]} 36. Rxf6+ {[%clk 0:01:22.6]} 36... Kg5 {[%clk
0:00:44.8]} 37. Rf5+ {[%clk 0:01:22.7]} 37... Kh6 {[%clk 0:00:36.5]} 38. Rh5+
{[%clk 0:01:13.3]} 38... Kg6 {[%clk 0:00:33.7]} 39. Rh6+ {[%clk 0:01:12.9]}
39... Kf7 {[%clk 0:00:19.2]} 40. Rf6+ {[%clk 0:01:13.2]} 40... Ke8 {[%clk
0:00:16.1]} 41. Re6+ {[%clk 0:01:12.8]} 41... Kd7 {[%clk 0:00:17.3]} 42. Rd6+
{[%clk 0:01:13.7]} 42... Kc7 {[%clk 0:00:18.5]} 43. Rc6+ {[%clk 0:01:07.1]}
43... Kb7 {[%clk 0:00:19.2]} 44. Rc7+ {[%clk 0:01:07.7]} 44... Kb8 {[%clk
0:00:17.6]} 45. Rxa7 {[%clk 0:00:59.3]} 45... Rb3+ {[%clk 0:00:15.3]} 46. Kh4
{[%clk 0:01:00.3]} 46... Kxa7 {[%clk 0:00:15.8]} 47. Kh5 {[%clk 0:01:02.2]}
47... Rh3# {[%clk 0:00:14.6]} 0-1

[Event "*** Qualifier 4: Titled Tuesday 3|2 Blitz"]
[Site "Chess.com"]
[Date "2017.04.25"]
[Round "3"]
[White "ABDELAZEEZ-M"]
[Black "PowerThinking2650"]
[Result "0-1"]
[WhiteElo "2162"]
[BlackElo "2293"]
[TimeControl "180+2"]
[EndTime "13:33:34 PDT"]
[Termination "PowerThinking2650 won by resignation"]

1. d4 {[%clk 0:02:48.5]} 1... Nf6 {[%clk 0:03:00.2]} 2. c4 {[%clk 0:02:49.3]}
2... g6 {[%clk 0:03:01.3]} 3. Nf3 {[%clk 0:02:49.3]} 3... Bg7 {[%clk 0:03:02.8]}
4. Bg5 {[%clk 0:02:44.9]} 4... O-O {[%clk 0:03:04]} 5. Nc3 {[%clk 0:02:44.9]}
5... d6 {[%clk 0:03:02.1]} 6. e3 {[%clk 0:02:40.8]} 6... h6 {[%clk 0:03:01.9]}
7. Bh4 {[%clk 0:02:41.4]} 7... a6 {[%clk 0:03:02.5]} 8. Be2 {[%clk 0:02:40.8]}
8... c6 {[%clk 0:03:01.4]} 9. Qc2 {[%clk 0:02:41.2]} 9... b5 {[%clk 0:03:00.1]}
10. Rd1 {[%clk 0:02:35.5]} 10... b4 {[%clk 0:02:57.2]} 11. Nb1 {[%clk
0:02:29.1]} 11... Bf5 {[%clk 0:02:55]} 12. Bd3 {[%clk 0:02:29.6]} 12... Bxd3
{[%clk 0:02:55.5]} 13. Qxd3 {[%clk 0:02:29.6]} 13... Qa5 {[%clk 0:02:52.8]} 14.
Qb3 {[%clk 0:02:20.3]} 14... Nbd7 {[%clk 0:02:50]} 15. Nbd2 {[%clk 0:02:19.9]}
15... e5 {[%clk 0:02:38.5]} 16. O-O {[%clk 0:02:19.5]} 16... e4 {[%clk
0:02:38.2]} 17. Ne1 {[%clk 0:02:19.8]} 17... d5 {[%clk 0:02:36.7]} 18. Bg3
{[%clk 0:02:17.1]} 18... Rfc8 {[%clk 0:02:30.2]} 19. Nc2 {[%clk 0:02:16.7]}
19... Bf8 {[%clk 0:02:27.4]} 20. c5 {[%clk 0:02:13.9]} 20... Nh5 {[%clk
0:02:21.5]} 21. Nxb4 {[%clk 0:01:43.1]} 21... Nxg3 {[%clk 0:02:21.1]} 22. hxg3
{[%clk 0:01:43.6]} 22... Rab8 {[%clk 0:02:21]} 23. a3 {[%clk 0:01:43.8]} 23...
Qb5 {[%clk 0:02:12.5]} 24. f3 {[%clk 0:00:19.6]} 24... exf3 {[%clk 0:01:32.2]}
25. Rxf3 {[%clk 0:00:20.2]} 25... a5 {[%clk 0:01:33.5]} 26. Rdf1 {[%clk
0:00:20.9]} 26... f5 {[%clk 0:01:11.2]} 27. Qc2 {[%clk 0:00:20.3]} 27... axb4
{[%clk 0:01:10.7]} 28. g4 {[%clk 0:00:21]} 28... b3 {[%clk 0:01:01]} 29. Qd1
{[%clk 0:00:21.5]} 29... Nf6 {[%clk 0:01:01.3]} 30. gxf5 {[%clk 0:00:22.3]}
30... g5 {[%clk 0:01:02.5]} 31. Rg3 {[%clk 0:00:20.8]} 31... Re8 {[%clk
0:00:59.9]} 32. Nf3 {[%clk 0:00:21.4]} 32... Rxe3 {[%clk 0:00:55.5]} 33. Qc1
{[%clk 0:00:22]} 33... Rbe8 {[%clk 0:00:51.6]} 34. Ne5 {[%clk 0:00:21.4]} 34...
Rxg3 {[%clk 0:00:47.4]} 35. Qe1 {[%clk 0:00:19.5]} 35... Rg4 {[%clk 0:00:34.3]}
36. Qf2 {[%clk 0:00:17.9]} 36... Rf4 {[%clk 0:00:32.3]} 37. Qxf4 {[%clk
0:00:18.1]} 37... gxf4 {[%clk 0:00:32.4]} 0-1

[Event "*** Qualifier 4: Titled Tuesday 3|2 Blitz"]
[Site "Chess.com"]
[Date "2017.04.25"]
[Round "3"]
[White "ChristopherYoo"]
[Black "DiogenesSinopeus"]
[Result "1-0"]
[WhiteElo "2277"]
[BlackElo "2242"]
[TimeControl "180+2"]
[EndTime "13:33:35 PDT"]
[Termination "ChristopherYoo won by resignation"]

1. e4 {[%clk 0:03:02]} 1... e5 {[%clk 0:03:01]} 2. Nf3 {[%clk 0:03:02.7]} 2...
Nc6 {[%clk 0:03:02.4]} 3. Bb5 {[%clk 0:03:03.7]} 3... a6 {[%clk 0:03:03.8]} 4.
Ba4 {[%clk 0:03:04.5]} 4... d6 {[%clk 0:03:05.7]} 5. Bxc6+ {[%clk 0:03:04]} 5...
bxc6 {[%clk 0:03:07.6]} 6. d4 {[%clk 0:03:05.1]} 6... f6 {[%clk 0:03:07.8]} 7.
Nc3 {[%clk 0:03:05]} 7... Ne7 {[%clk 0:03:07.3]} 8. Be3 {[%clk 0:03:02.4]} 8...
Ng6 {[%clk 0:03:08.3]} 9. Qd2 {[%clk 0:03:02]} 9... Be7 {[%clk 0:03:08.6]} 10.
h3 {[%clk 0:02:57.6]} 10... O-O {[%clk 0:03:02.3]} 11. O-O {[%clk 0:02:58.2]}
11... Kh8 {[%clk 0:02:58.3]} 12. Rad1 {[%clk 0:02:58]} 12... Bd7 {[%clk
0:02:46.7]} 13. Kh2 {[%clk 0:02:40.4]} 13... Qb8 {[%clk 0:02:43.6]} 14. b3
{[%clk 0:02:36.2]} 14... Qe8 {[%clk 0:02:33.3]} 15. g4 {[%clk 0:02:27.1]} 15...
Rd8 {[%clk 0:02:18.3]} 16. d5 {[%clk 0:02:13.1]} 16... cxd5 {[%clk 0:02:04.7]}
17. Nxd5 {[%clk 0:02:13.2]} 17... Rc8 {[%clk 0:01:35]} 18. Rg1 {[%clk
0:02:11.3]} 18... Qf7 {[%clk 0:01:20.3]} 19. h4 {[%clk 0:02:11]} 19... Rfd8
{[%clk 0:01:04.7]} 20. h5 {[%clk 0:01:50.3]} 20... Nf8 {[%clk 0:01:05.1]} 21.
Nh4 {[%clk 0:01:28.7]} 21... Be6 {[%clk 0:00:41.6]} 22. c4 {[%clk 0:00:54.6]}
22... c6 {[%clk 0:00:38.6]} 23. Nxe7 {[%clk 0:00:54.2]} 23... Qxe7 {[%clk
0:00:40.5]} 24. Qb4 {[%clk 0:00:40.2]} 24... c5 {[%clk 0:00:18.2]} 25. Qd2
{[%clk 0:00:38.6]} 25... Qf7 {[%clk 0:00:19.2]} 26. Nf5 {[%clk 0:00:30.5]} 26...
Bxf5 {[%clk 0:00:20.2]} 27. exf5 {[%clk 0:00:31.6]} 27... Rc6 {[%clk 0:00:09.4]}
28. Qd5 {[%clk 0:00:32.1]} 28... Qxd5 {[%clk 0:00:10.3]} 29. Rxd5 {[%clk
0:00:29.9]} 29... Nd7 {[%clk 0:00:06.8]} 30. Rgd1 {[%clk 0:00:29.6]} 30... Nb6
{[%clk 0:00:08.3]} 31. Rxc5 {[%clk 0:00:28.9]} 31... Rxc5 {[%clk 0:00:08.8]} 32.
Bxc5 {[%clk 0:00:29.8]} 32... Nc8 {[%clk 0:00:10.3]} 33. Bb4 {[%clk 0:00:29.4]}
33... Kg8 {[%clk 0:00:11]} 34. Rd5 {[%clk 0:00:25.6]} 34... Kf7 {[%clk
0:00:06.8]} 35. c5 {[%clk 0:00:21.9]} 35... Ne7 {[%clk 0:00:03.2]} 36. Rxd6
{[%clk 0:00:21.8]} 36... Rxd6 {[%clk 0:00:03.3]} 37. cxd6 {[%clk 0:00:22.9]}
37... Nd5 {[%clk 0:00:04]} 38. d7 {[%clk 0:00:21.2]} 1-0

[Event "*** Qualifier 4: Titled Tuesday 3|2 Blitz"]
[Site "Chess.com"]
[Date "2017.04.25"]
[Round "3"]
[White "Gabrielian_Artur"]
[Black "djano"]
[Result "1-0"]
[WhiteElo "2586"]
[BlackElo "2420"]
[TimeControl "180+2"]
[EndTime "13:33:54 PDT"]
[Termination "Gabrielian_Artur won by resignation"]

1. d4 {[%clk 0:03:02]} 1... e6 {[%clk 0:03:00]} 2. c4 {[%clk 0:03:02.6]} 2... d5
{[%clk 0:03:00.1]} 3. Nf3 {[%clk 0:02:59.7]} 3... Nf6 {[%clk 0:03:00.5]} 4. g3
{[%clk 0:03:00.4]} 4... Be7 {[%clk 0:02:59.4]} 5. Bg2 {[%clk 0:03:01.4]} 5...
O-O {[%clk 0:03:00.9]} 6. O-O {[%clk 0:03:02.6]} 6... c6 {[%clk 0:03:02.1]} 7.
Qc2 {[%clk 0:03:00]} 7... b6 {[%clk 0:03:00.7]} 8. Nbd2 {[%clk 0:02:59.7]} 8...
Bb7 {[%clk 0:03:00.8]} 9. b3 {[%clk 0:02:48.4]} 9... Nbd7 {[%clk 0:03:01.2]} 10.
Bb2 {[%clk 0:02:49.5]} 10... Rc8 {[%clk 0:02:59.9]} 11. e4 {[%clk 0:02:50.7]}
11... c5 {[%clk 0:02:52.9]} 12. exd5 {[%clk 0:02:43.1]} 12... exd5 {[%clk
0:02:51.7]} 13. Rfe1 {[%clk 0:02:41.1]} 13... dxc4 {[%clk 0:02:48.6]} 14. Nxc4
{[%clk 0:02:38.6]} 14... cxd4 {[%clk 0:02:42.9]} 15. Nxd4 {[%clk 0:02:31.1]}
15... Bxg2 {[%clk 0:02:38.5]} 16. Kxg2 {[%clk 0:02:33]} 16... Bb4 {[%clk
0:02:32]} 17. Re2 {[%clk 0:02:30]} 17... Re8 {[%clk 0:02:24.6]} 18. Rd1 {[%clk
0:02:28.8]} 18... Qc7 {[%clk 0:02:07.8]} 19. Qf5 {[%clk 0:02:10.3]} 19... Qb7+
{[%clk 0:01:53.4]} 20. Kg1 {[%clk 0:02:03.7]} 20... a6 {[%clk 0:01:38.6]} 21. a3
{[%clk 0:01:57.4]} 21... Bc5 {[%clk 0:01:37.5]} 22. Rde1 {[%clk 0:01:58]} 22...
Rxe2 {[%clk 0:01:33.4]} 23. Rxe2 {[%clk 0:01:58.8]} 23... Bxd4 {[%clk
0:01:25.5]} 24. Bxd4 {[%clk 0:01:59.2]} 24... b5 {[%clk 0:01:24.8]} 25. Bxf6
{[%clk 0:01:27.3]} 25... Nxf6 {[%clk 0:01:16.4]} 26. Re7 {[%clk 0:01:27.3]}
26... Qa8 {[%clk 0:01:08.9]} 27. Ne3 {[%clk 0:00:34.6]} 27... Rc1+ {[%clk
0:01:02.5]} 28. Nf1 {[%clk 0:00:33.3]} 28... h6 {[%clk 0:00:57.8]} 29. Qd3
{[%clk 0:00:26.4]} 29... Qc6 {[%clk 0:00:36.8]} 30. Qd8+ {[%clk 0:00:25.8]}
30... Kh7 {[%clk 0:00:36.3]} 31. Qd3+ {[%clk 0:00:26.2]} 31... Kg8 {[%clk
0:00:34.7]} 32. Qd8+ {[%clk 0:00:20.2]} 32... Kh7 {[%clk 0:00:35.2]} 33. Rxf7
{[%clk 0:00:19.4]} 33... Qc2 {[%clk 0:00:20.5]} 34. Qxf6 {[%clk 0:00:18.7]}
34... Rxf1+ {[%clk 0:00:09.7]} 35. Kxf1 {[%clk 0:00:17.7]} 35... Qd1+ {[%clk
0:00:09.5]} 36. Kg2 {[%clk 0:00:18.8]} 36... Qd5+ {[%clk 0:00:10.5]} 37. f3
{[%clk 0:00:20.2]} 37... Qd2+ {[%clk 0:00:11.3]} 38. Kh3 {[%clk 0:00:21.6]}
38... Qd7+ {[%clk 0:00:11.1]} 39. Rxd7 {[%clk 0:00:18.3]} 1-0

[Event "*** Qualifier 4: Titled Tuesday 3|2 Blitz"]
[Site "Chess.com"]
[Date "2017.04.25"]
[Round "3"]
[White "Fandorine"]
[Black "gmcorrales"]
[Result "1-0"]
[WhiteElo "2704"]
[BlackElo "2600"]
[TimeControl "180+2"]
[EndTime "13:34:01 PDT"]
[Termination "Fandorine won by resignation"]

1. e4 {[%clk 0:03:02]} 1... c5 {[%clk 0:03:00.5]} 2. Nf3 {[%clk 0:03:03.1]} 2...
d6 {[%clk 0:03:01.3]} 3. d4 {[%clk 0:03:04.5]} 3... cxd4 {[%clk 0:03:03.2]} 4.
Nxd4 {[%clk 0:03:06.2]} 4... Nf6 {[%clk 0:03:04.8]} 5. Nc3 {[%clk 0:03:07.9]}
5... g6 {[%clk 0:03:06.4]} 6. Be3 {[%clk 0:03:05.6]} 6... Bg7 {[%clk 0:03:07.4]}
7. f3 {[%clk 0:03:04.7]} 7... O-O {[%clk 0:03:09]} 8. Qd2 {[%clk 0:03:06.4]}
8... Nc6 {[%clk 0:03:10.7]} 9. O-O-O {[%clk 0:03:07.9]} 9... d5 {[%clk
0:03:12.2]} 10. exd5 {[%clk 0:03:09.4]} 10... Nxd5 {[%clk 0:03:14]} 11. Nxc6
{[%clk 0:03:10.8]} 11... bxc6 {[%clk 0:03:15.9]} 12. Bd4 {[%clk 0:03:12.6]}
12... Bxd4 {[%clk 0:03:15.7]} 13. Qxd4 {[%clk 0:03:14.3]} 13... Qb6 {[%clk
0:03:15.3]} 14. Na4 {[%clk 0:03:05.8]} 14... Qa5 {[%clk 0:03:16.1]} 15. b3
{[%clk 0:02:48.1]} 15... Qc7 {[%clk 0:03:15.4]} 16. Bc4 {[%clk 0:02:43.8]} 16...
Nb6 {[%clk 0:03:08.2]} 17. Nc5 {[%clk 0:02:42.1]} 17... Bf5 {[%clk 0:03:07]} 18.
g3 {[%clk 0:02:15.1]} 18... Rad8 {[%clk 0:03:03.7]} 19. Qc3 {[%clk 0:02:15.4]}
19... Rd6 {[%clk 0:02:46.3]} 20. g4 {[%clk 0:01:55.4]} 20... Rxd1+ {[%clk
0:02:16.4]} 21. Rxd1 {[%clk 0:01:56.2]} 21... Qf4+ {[%clk 0:02:11.7]} 22. Qd2
{[%clk 0:01:41.5]} 22... Qe5 {[%clk 0:02:12.6]} 23. Qd4 {[%clk 0:01:40.1]} 23...
Nxc4 {[%clk 0:02:13.9]} 24. bxc4 {[%clk 0:01:32.7]} 24... Qxd4 {[%clk
0:02:08.1]} 25. Rxd4 {[%clk 0:01:34.6]} 25... Bc8 {[%clk 0:02:09.1]} 26. Re4
{[%clk 0:01:26.9]} 26... Re8 {[%clk 0:02:08.7]} 27. Re3 {[%clk 0:01:28.3]} 27...
e5 {[%clk 0:02:09.4]} 28. Ra3 {[%clk 0:01:24.8]} 28... Re7 {[%clk 0:02:10.3]}
29. Rd3 {[%clk 0:01:26.2]} 29... Kf8 {[%clk 0:02:10]} 30. Rd8+ {[%clk
0:01:23.6]} 30... Re8 {[%clk 0:02:10.6]} 31. Rd6 {[%clk 0:01:25.3]} 31... Be6
{[%clk 0:01:44.3]} 32. Nxe6+ {[%clk 0:00:44.9]} 32... Rxe6 {[%clk 0:01:44.5]}
33. Rxe6 {[%clk 0:00:46.3]} 33... fxe6 {[%clk 0:01:46.4]} 34. Kd2 {[%clk
0:00:47.6]} 34... e4 {[%clk 0:01:39.7]} 35. f4 {[%clk 0:00:45.9]} 35... Ke7
{[%clk 0:01:13.6]} 36. Ke3 {[%clk 0:00:46.3]} 36... c5 {[%clk 0:01:11.5]} 37.
Kxe4 {[%clk 0:00:47.1]} 37... Kd6 {[%clk 0:01:12.6]} 38. a3 {[%clk 0:00:44.7]}
38... a6 {[%clk 0:01:13.2]} 39. h3 {[%clk 0:00:43.5]} 39... h6 {[%clk
0:01:13.5]} 40. a4 {[%clk 0:00:41]} 40... g5 {[%clk 0:01:13.1]} 41. a5 {[%clk
0:00:37.3]} 41... Kd7 {[%clk 0:00:18.2]} 42. Ke5 {[%clk 0:00:32.5]} 42... Ke7
{[%clk 0:00:19.1]} 43. f5 {[%clk 0:00:31.6]} 43... exf5 {[%clk 0:00:18.5]} 44.
Kxf5 {[%clk 0:00:33]} 44... Kf7 {[%clk 0:00:19.2]} 45. Ke5 {[%clk 0:00:34.1]}
45... Ke7 {[%clk 0:00:19.1]} 46. Kd5 {[%clk 0:00:35.6]} 46... Kf6 {[%clk
0:00:17.6]} 47. Kxc5 {[%clk 0:00:36.9]} 47... Ke5 {[%clk 0:00:19.5]} 48. Kb6
{[%clk 0:00:38.5]} 48... Kf4 {[%clk 0:00:20.1]} 49. c5 {[%clk 0:00:40.1]} 49...
Kg3 {[%clk 0:00:22]} 50. c6 {[%clk 0:00:41.8]} 50... Kxh3 {[%clk 0:00:23.9]} 51.
c7 {[%clk 0:00:43.5]} 51... Kxg4 {[%clk 0:00:25.8]} 52. c8=Q+ {[%clk 0:00:44.8]}
1-0

[Event "*** Qualifier 4: Titled Tuesday 3|2 Blitz"]
[Site "Chess.com"]
[Date "2017.04.25"]
[Round "3"]
[White "popov_m"]
[Black "feigelag"]
[Result "0-1"]
[WhiteElo "2398"]
[BlackElo "2291"]
[TimeControl "180+2"]
[EndTime "13:34:10 PDT"]
[Termination "feigelag won by resignation"]

1. c4 {[%clk 0:03:02]} 1... e5 {[%clk 0:02:59.7]} 2. g3 {[%clk 0:02:56.8]} 2...
Nf6 {[%clk 0:03:00.9]} 3. Bg2 {[%clk 0:02:56.8]} 3... d5 {[%clk 0:03:02.3]} 4.
cxd5 {[%clk 0:02:57.1]} 4... Nxd5 {[%clk 0:03:04.2]} 5. Nf3 {[%clk 0:02:57.7]}
5... Nc6 {[%clk 0:03:04.2]} 6. O-O {[%clk 0:02:57.6]} 6... Nb6 {[%clk
0:03:04.5]} 7. b3 {[%clk 0:02:58.7]} 7... Be7 {[%clk 0:03:05.3]} 8. Bb2 {[%clk
0:03:00.1]} 8... f6 {[%clk 0:03:05.1]} 9. d4 {[%clk 0:02:58.6]} 9... exd4 {[%clk
0:02:59.9]} 10. Nxd4 {[%clk 0:03:00]} 10... Nxd4 {[%clk 0:02:58.7]} 11. Bxd4
{[%clk 0:03:00.2]} 11... O-O {[%clk 0:02:57.3]} 12. Nc3 {[%clk 0:02:56.5]} 12...
c6 {[%clk 0:02:55.7]} 13. Ne4 {[%clk 0:02:51.5]} 13... Nd5 {[%clk 0:02:48.9]}
14. Rc1 {[%clk 0:02:47.2]} 14... Re8 {[%clk 0:02:44.1]} 15. Nc5 {[%clk
0:02:45.4]} 15... Bxc5 {[%clk 0:02:42.7]} 16. Bxc5 {[%clk 0:02:43.4]} 16... Bf5
{[%clk 0:02:39.8]} 17. Re1 {[%clk 0:02:25]} 17... Nc7 {[%clk 0:02:24.2]} 18. e4
{[%clk 0:02:17.7]} 18... Bg6 {[%clk 0:02:19.3]} 19. Qg4 {[%clk 0:01:46]} 19...
Ne6 {[%clk 0:02:13.1]} 20. Be3 {[%clk 0:01:40.2]} 20... Qa5 {[%clk 0:02:10.4]}
21. Bf1 {[%clk 0:01:11.3]} 21... Bh5 {[%clk 0:01:52.5]} 22. Qf5 {[%clk
0:01:01.7]} 22... Qxf5 {[%clk 0:01:48.3]} 23. exf5 {[%clk 0:01:02.3]} 23... Nc7
{[%clk 0:01:49.6]} 24. Bg2 {[%clk 0:00:34.6]} 24... Bf7 {[%clk 0:01:43.9]} 25.
h3 {[%clk 0:00:21.8]} 25... Bd5 {[%clk 0:01:41.6]} 26. Bf1 {[%clk 0:00:21.5]}
26... Be4 {[%clk 0:01:38.9]} 27. g4 {[%clk 0:00:21.5]} 27... Nd5 {[%clk
0:01:35.4]} 28. Bxa7 {[%clk 0:00:17.1]} 28... Rxa7 {[%clk 0:01:32.8]} 29. f3
{[%clk 0:00:18.7]} 29... Rxa2 {[%clk 0:01:30.1]} 30. Rxe4 {[%clk 0:00:14.5]}
30... Rxe4 {[%clk 0:01:30.2]} 31. fxe4 {[%clk 0:00:16.4]} 31... Nf4 {[%clk
0:01:28.5]} 32. b4 {[%clk 0:00:17.5]} 32... Rb2 {[%clk 0:01:22.2]} 33. b5 {[%clk
0:00:18.3]} 33... cxb5 {[%clk 0:01:18.7]} 34. Rc8+ {[%clk 0:00:19.1]} 34... Kf7
{[%clk 0:01:20]} 35. Rc7+ {[%clk 0:00:21]} 35... Kf8 {[%clk 0:01:19.5]} 36. Rxb7
{[%clk 0:00:22.9]} 36... b4 {[%clk 0:01:19.2]} 37. Bc4 {[%clk 0:00:22.7]} 37...
Nxh3+ {[%clk 0:01:17.8]} 38. Kf1 {[%clk 0:00:23.3]} 38... Ng5 {[%clk 0:01:17.8]}
39. Bd5 {[%clk 0:00:22.9]} 39... b3 {[%clk 0:01:15.9]} 40. Ke1 {[%clk
0:00:18.2]} 40... Nf3+ {[%clk 0:01:14.4]} 41. Kd1 {[%clk 0:00:19.1]} 41... Rd2+
{[%clk 0:01:11.8]} 42. Kc1 {[%clk 0:00:20.6]} 42... b2+ {[%clk 0:01:12.7]} 43.
Kb1 {[%clk 0:00:21.4]} 43... Ne5 {[%clk 0:01:06.8]} 44. Rb8+ {[%clk 0:00:08.8]}
44... Ke7 {[%clk 0:01:06.3]} 45. Rb7+ {[%clk 0:00:10.4]} 45... Kd6 {[%clk
0:01:04.1]} 46. Rxg7 {[%clk 0:00:11.4]} 46... Nd3 {[%clk 0:01:02.7]} 47. Rb7
{[%clk 0:00:11.3]} 47... Ke5 {[%clk 0:00:56.5]} 48. Bc4 {[%clk 0:00:06.5]} 48...
Rd1+ {[%clk 0:00:49.8]} 49. Ka2 {[%clk 0:00:07.2]} 49... Ra1+ {[%clk 0:00:46.4]}
0-1